Cogmind - Beta 15 @@@ ROGUE MODE // 2025.09.19 @ 12:22:35 Player: Petvaria Result: Destroyed by H-88 Terminator with KE Penetrator Performance ------------- Evolutions (9) 4500 Regions Visited (14) 2800 Robots Destroyed (124) 620 Value Destroyed (5736) 5736 Prototype IDs (7) 140 Alien Tech Used (3) 600 Bonus (4784) 4784 TOTAL SCORE: 19180 Bonus ------- High Alert Combat Kills 214 Follower Combat Kills 2092 Forged Quantum Companion 1000 Registered with UFD 300 Built Enhanced Grunts 300 Met R17 at Cetus 500 Scanned by Researcher 500 Friendly Fire -122 Cogmind --------- Core Integrity 0/1600 Matter 270/300 Energy 93/100 System Corruption 9% Temperature Cool (0) Movement Core (100) Ox1 Location -1/Access Parts ------- > --- POWER (2) -------- (None) > --- PROPULSION (7) --- (None) > --- UTILITY (14) ----- Enhanced Optical Array Improved Weapon Shielding > --- WEAPON (2) ------- Quantum Companion > --- INVENTORY (5) ---- Micro Antimatter Reactor Micro Antimatter Reactor Peak State ------------ > --- POWER ------------ Light Antimatter Reactor Improved Quantum Reactor > --- PROPULSION ------- Thunder Leg Thunder Leg Myomer Leg Myomer Leg Improved Thunder Leg Centrium Leg > --- UTILITY ---------- Medium Storage Unit Enhanced Optical Array Advanced Sensor Array Advanced Signal Interpreter Core Analyzer Improved Armor Integrity Analyzer Nanoactuators Nanoactuators Advanced Reaction Control System Improved Weapon Shielding Graphene Brace Improved Hacking Suite > --- WEAPON ----------- Companion Sword > --- INVENTORY -------- Light Particle Reactor Flexi-carbon Leg Medium Armored Exoskeleton Myomer Leg Myomer Leg Nanoactuators Improved Weapon Shielding Subatomic Replicator [Rating: 135] Favorites ----------- Power Light Ion Engine Engine Light Ion Engine Power Core Neutrino Core Reactor Micro Antimatter Reactor Propulsion Compact Wheel Treads Light Treads Leg Myomer Leg Wheel Compact Wheel Hover Unit Improved Antigrav System Flight Unit Field Propulsion Drive Utility High-capacity Storage Unit Device Nanoactuators Storage High-capacity Storage Unit Processor Advanced Signal Interpreter Hackware Improved Hacking Suite Protection Improved Weapon Shielding Artifact Phase Armor Weapon Companion Sword Energy Gun Subdweller Laser Ballistic Gun Heavy Assault Rifle Impact Weapon Hammer Slashing Weapon Companion Sword Build | -11 -10 -10 -7 -7 -5 -5 -5 -4 -4 -4 -3 -3 -2 -1 ------- Run | Yrd Mat Sub Rec Scr Fac Ext Cet Fac Was Fac Res Qua Res Acc Slots Evolved 18 | . . . . . 10 . . 2 . . 2 . 2 2 Power 1 | . . . . . 1 . . . . . . . . . Propulsion 5 | . . . . . 2 . . 1 . . 1 . . 1 Utility 12 | . . . . . 7 . . 1 . . 1 . 2 1 Weapon . | . . . . . . . . . . . . . . . Parts Attached 129 | 5 8 3 3 5 11 11 4 20 . 11 3 7 31 7 Power 19 | 1 1 . . 1 . 4 . 1 . 1 1 . 8 1 Engine 5 | 1 1 . . 1 . 2 . . . . . . . . Core 3 | . . . . . . 2 . 1 . . . . . . Reactor 11 | . . . . . . . . . . 1 1 . 8 1 Propulsion 50 | 3 . . . 2 4 3 . 11 . 4 1 3 14 5 Treads 4 | 2 . . . 1 1 . . . . . . . . . Leg 38 | . . . . . 2 3 . 10 . 3 . 3 14 3 Wheel 4 | 1 . . . 1 1 . . . . 1 . . . . Hover 2 | . . . . . . . . . . . . . . 2 Flight 2 | . . . . . . . . 1 . . 1 . . . Utility 48 | 1 2 1 . 1 7 4 4 8 . 6 1 4 9 . Device 18 | . . 1 . . 2 1 . 2 . 6 . . 6 . Storage 3 | 1 1 . . . . . . . . . . 1 . . Processor 10 | . . . . 1 2 1 . 4 . . 1 . 1 . Hackware 2 | . . . . . . 1 . . . . . 1 . . Protection 13 | . 1 . . . 3 1 4 2 . . . . 2 . Artifact 2 | . . . . . . . . . . . . 2 . . Weapon 12 | . 5 2 3 1 . . . . . . . . . 1 Energy Gun 4 | . 2 2 . . . . . . . . . . . . Energy Cannon . | . . . . . . . . . . . . . . . Ballistic Gun 3 | . 2 . 1 . . . . . . . . . . . Ballistic Cannon . | . . . . . . . . . . . . . . . Launcher . | . . . . . . . . . . . . . . . Special Weapon . | . . . . . . . . . . . . . . . Impact Weapon 1 | . 1 . . . . . . . . . . . . . Slashing Weapon 4 | . . . 2 1 . . . . . . . . . 1 Piercing Weapon . | . . . . . . . . . . . . . . . Special Melee Weapon . | . . . . . . . . . . . . . . . Unidentified Prototypes 9 | . . 1 . 1 . . 1 . . . 1 2 1 2 Parts Lost 98 | . 2 . 1 . 3 8 3 24 . . . 5 31 21 Power 16 | . 1 . . . . 3 . 2 . . . . 8 2 Propulsion 43 | . . . 1 . 1 2 . 12 . . . 4 12 11 Utility 38 | . . . . . 2 3 3 10 . . . 1 11 8 Weapon 1 | . 1 . . . . . . . . . . . . . Highest Loss Streak 17 | . 1 . 1 . 2 3 2 17 . . . 2 10 17 To Critical Strikes . | . . . . . . . . . . . . . . . Average Backups 14 | 4 9 17 19 18 18 19 19 13 3 2 3 4 7 6 Power 1 | . . . 1 1 2 2 1 1 1 . . . 1 1 Propulsion 4 | 2 1 3 4 4 8 10 10 4 2 2 3 3 3 3 Utility 3 | . . 3 4 4 5 5 6 5 . . . 1 . . Weapon 4 | 1 7 10 10 9 1 . . . . . . . . . Tool/Special . | . . . . . . . . . . . . . . . Unused Backups 29 | . 3 2 . 7 5 2 . 8 . . . . 1 1 Power 4 | . . . . . 1 2 . . . . . . . 1 Propulsion 7 | . 3 . . . 1 . . 2 . . . . 1 . Utility 5 | . . . . 1 1 . . 3 . . . . . . Weapon 10 | . . 2 . 6 2 . . . . . . . . . Tool/Special 3 | . . . . . . . . 3 . . . . . . Average Slot Usage (%) 80 | . 95 100 87 84 64 65 64 67 36 62 81 87 73 59 Engine 7 | . 13 14 14 14 5 4 . . . . . . . . Reactor 1 | . . . . . . . . . . 4 4 9 5 6 Treads 4 | . 17 14 1 3 5 . . . . . . . . . Leg 6 | . . . . . 5 10 11 17 . 8 9 10 17 17 Wheel 7 | . 10 14 14 15 5 . . . . 1 4 3 . . Device 9 | . . 12 14 3 5 2 3 2 5 16 28 24 15 11 Storage 8 | . 14 14 14 14 5 5 5 4 . . . 2 4 3 Processor 9 | . . . . 9 11 17 11 14 15 15 16 19 18 12 Hackware 1 | . . . . . . 3 5 4 . . . . 1 . Protection 4 | . 10 1 . . 10 10 12 13 5 5 4 4 3 4 Energy Gun 5 | . 7 11 14 10 . . . . . . . . . . Ballistic Gun 2 | . 19 5 1 . . . . . . . . . . . Impact Weapon 2 | . . 11 5 . . . . . . . . . . . Slashing Weapon 5 | . . . 7 13 5 5 5 5 5 5 4 4 4 4 Peak Build Rating 135 | 4 10 14 14 22 65 70 79 90 40 102 124 134 135 130 Average Rating 49 | 3 9 12 13 16 46 64 70 72 40 72 109 117 107 102 On Entrance 54 | . 4 9 13 14 22 60 70 79 40 40 102 124 116 123 Naked Turns . | . . . . . . . . . . . . . . . Heaviest Build 75 | 10 52 51 51 57 66 70 75 75 7 41 54 63 59 50 Greatest Support 185 | 40 40 16 16 36 68 75 75 93 7 46 28 116 163 185 Greatest Overweight (x) 15 | 1 3 3 3 3 3 1 2 15 . 1 1 2 . 1 Average Overweight (x) 1 | . 2 2 3 2 1 . . . . . 1 1 . . Largest Inventory Capacity 20 | 8 20 20 20 20 20 20 20 20 5 5 5 10 10 10 Average Capacity 16 | 7 17 20 20 20 20 20 20 18 5 5 5 7 10 9 Most Carried 20 | 8 12 20 20 20 20 20 20 20 5 5 5 10 10 10 Average Carried 15 | 4 9 17 20 19 18 19 19 15 5 4 5 6 9 7 Final Capacity 20 | 8 20 20 20 20 20 20 20 5 5 5 5 10 10 5 Final Carried 20 | 8 10 20 20 20 20 20 20 5 5 5 5 10 10 2 Class Distribution -------------------- 58% | Mutant 12% | Commander-Mutant 11% | Scavenger-Mutant 10% | Assassin 6% | Scavenger-Assassin Dominant Class ---------------- Mutant | -10/Materials Mutant | -10/Subcaves Mutant | -7/Recycling Mutant | -7/Scraptown Mutant | -5/Factory Commander-Mutant | -5/Extension Commander-Mutant | -5/Cetus Scavenger-Mutant | -4/Factory Scout | -4/Waste Assassin | -4/Factory Assassin | -3/Research Assassin | -3/Quarantine Scavenger-Mutant | -2/Research Scavenger-Mutant | -1/Access Resources | -11 -10 -10 -7 -7 -5 -5 -5 -4 -4 -4 -3 -3 -2 -1 ----------- Run | Yrd Mat Sub Rec Scr Fac Ext Cet Fac Was Fac Res Qua Res Acc Matter Collected 1792 | 205 219 117 53 50 115 143 102 171 . . . 233 359 25 Remotely . | . . . . . . . . . . . . . . . Salvage Created 7345 | . 357 56 63 . 1386 1231 . 533 . 15 . 639 2808 257 Parts 354 | . 34 3 5 . 47 43 . 45 . 2 . 30 134 11 Haulers Intercepted . | . . . . . . . . . . . . . . . Recyclers Shooed 3 | . . . . . 1 1 . . . . . . 1 . Parts Field Recycled . | . . . . . . . . . . . . . . . Retrieved Matter . | . . . . . . . . . . . . . . . Parts Self-Destructed 7 | . . 7 . . . . . . . . . . . . Prevented . | . . . . . . . . . . . . . . . Kills | -11 -10 -10 -7 -7 -5 -5 -5 -4 -4 -4 -3 -3 -2 -1 ------- Run | Yrd Mat Sub Rec Scr Fac Ext Cet Fac Was Fac Res Qua Res Acc Combat Hostiles Destroyed 83 | . 10 1 3 . 6 14 . 6 . . . 6 34 3 Melee 68 | . . . . . 6 14 . 6 . . . 6 34 2 Guns 13 | . 9 1 3 . . . . . . . . . . . Cannons 1 | . . . . . . . . . . . . . . 1 AOE 1 | . 1 . . . . . . . . . . . . . Classes Destroyed 17 | . 6 1 3 . 4 . . 1 . . . 2 . . Worker 8 | . 2 . . . 1 . . 1 . . . 1 3 . Builder 6 | . 1 . . . . 1 . 4 . . . . . . Tunneler 2 | . 1 . . . . . . . . . . . 1 . Recycler 13 | . . . . . 7 2 . . . . . 1 3 . Operator 4 | . . . . . 1 . . . . 1 . 1 1 . Watcher 6 | . 1 . . . 1 1 . 1 . . . . 2 . Swarmer 13 | . 3 . 1 . 1 . . . . . . . 8 . Grunt 32 | . 7 . . . 1 10 . 2 . . . 2 10 . Brawler 1 | . . . . . 1 . . . . . . . . . Duelist 1 | . . . . . 1 . . . . . . . . . Researcher 1 | . . . . . . . . . . . . 1 . . Sentry 9 | . . 1 . . 2 4 . 1 . . . . 1 . Demolisher 1 | . . . 1 . . . . . . . . . . . Hunter 6 | . . . . . . . . . . . . 2 2 2 Programmer 19 | . . . 1 . . . . 2 . . . 2 13 1 Heavy 1 | . . . . . . . . 1 . . . . . . Subdweller 1 | . . . 1 . . . . . . . . . . . Best Kill Streak 10 | . 5 1 2 . 4 4 . 3 . 1 . 3 10 2 Combat Bots Only 6 | . 3 1 2 . 1 4 . 1 . . . 2 6 2 Max Kills in Single Turn 4 | . 4 1 1 . 1 1 . 1 . 1 . 1 1 1 Gunslinging . | . . . . . . . . . . . . . . . Exploded 1 | . 1 . . . . . . . . . . . . . Melee 1 | . . . . . 1 1 . 1 . . . 1 1 1 Uniques/NPCs Destroyed . | . . . . . . . . . . . . . . . Combat | -11 -10 -10 -7 -7 -5 -5 -5 -4 -4 -4 -3 -3 -2 -1 -------- Run | Yrd Mat Sub Rec Scr Fac Ext Cet Fac Was Fac Res Qua Res Acc Hostile Shots Fired 1228 | . 37 14 3 . 45 106 27 267 . . 2 83 382 262 Missed 376 | . 8 4 1 . 13 31 13 82 . . 2 18 122 82 Deflected 1 | . . . . . . . . . . . . . . 1 Hits 852 | . 29 10 2 . 32 75 14 185 . . . 65 260 180 Melee 7 | . . . . . 7 . . . . . . . . . Projectile 845 | . 29 10 2 . 25 75 14 185 . . . 65 260 180 AOE 8 | . . . 7 . . . . 1 . . . . . . Critical Strikes 44 | . . . . . 1 6 1 10 . . . 3 14 9 Actively Blocked 20 | . . . . . . . . . . . . . 14 6 Part Disruptions 9 | . . . . . . . 1 . . . . . 8 . Damage Taken 19287 | . 468 182 252 . 836 1514 503 4749 . 8 . 1098 5861 3816 Core 4637 | . 88 26 131 . 94 310 70 989 . 8 . 168 1137 1616 Absorbed by Shields 1018 | . . . . . . 420 107 . . . . 237 206 48 Redirected to Shielding 317 | . 12 . . . 20 13 . 131 . . . 16 95 30 Core Remaining (%) 45 | 100 . . . 2 . . 52 . . 13 . 87 21 . Volleys Fired 38 | . 27 5 6 . . . . . . . . . . . Largest 2 | . 2 2 2 . . . . . . . . . . . Hottest 83 | . 73 83 83 . . . . . . . . . . . Shots Fired 73 | . 51 10 12 . . . . . . . . . . . Gun 73 | . 51 10 12 . . . . . . . . . . . Cannon . | . . . . . . . . . . . . . . . Launcher . | . . . . . . . . . . . . . . . Special . | . . . . . . . . . . . . . . . Kinetic 43 | . 32 5 6 . . . . . . . . . . . Thermal 30 | . 19 5 6 . . . . . . . . . . . Explosive . | . . . . . . . . . . . . . . . Electromagnetic . | . . . . . . . . . . . . . . . Robot Hit Streak 7 | . 6 7 2 . . . . . . . . . . . Robot Miss Streak 3 | . 3 1 2 . . . . . . . . . . . Penetration Max . | . . . . . . . . . . . . . . . Secondary Targets 1 | . 1 . . . . . . . . . . . . . Max Gunslinging Chain 1 | . 1 . . . . . . . . . . . . . Autonomous 2 | . . . . . . . . . . . . . . 2 Shots Hit Robots 382 | . 30 7 5 . 44 58 3 35 . 1 . 38 141 20 Core Hits 170 | . 18 2 5 . 20 25 1 16 . 1 . 14 60 8 Critical Kills . | . . . . . . . . . . . . . . . Critical Parts Destroyed . | . . . . . . . . . . . . . . . Critical Strikes 18 | . . . . . 2 2 . . . . . 2 10 2 Melee Attacks 543 | . 3 32 15 . 52 69 4 60 . 13 7 52 208 28 Impact 38 | . 3 32 3 . . . . . . . . . . . Slashing 505 | . . . 12 . 52 69 4 60 . 13 7 52 208 28 Piercing . | . . . . . . . . . . . . . . . Sneak Attacks 41 | . . . . . 12 4 . 7 . . . 3 14 1 Combat Hostiles 5 | . . . . . 1 1 . . . . . . 3 . Follow-up Attacks 8 | . . . . . . . . . . . . 1 7 . Damage Inflicted 17386 | . 905 97 165 . 2332 2629 103 1662 . 42 . 1742 6568 1141 Guns 703 | . 441 97 165 . . . . . . . . . . . Cannons 195 | . . . . . . . . . . . . . . 195 Explosions 464 | . 464 . . . . . . . . . . . . . Melee 16020 | . . . . . 2332 2629 103 1662 . 42 . 1742 6564 946 Ramming 4 | . . . . . . . . . . . . . 4 . Kinetic 430 | . 315 60 55 . . . . . . . . . . . Thermal 273 | . 126 37 110 . . . . . . . . . . . Explosive 464 | . 464 . . . . . . . . . . . . . Electromagnetic . | . . . . . . . . . . . . . . . Impact . | . . . . . . . . . . . . . . . Slashing 16020 | . . . . . 2332 2629 103 1662 . 42 . 1742 6564 946 Piercing . | . . . . . . . . . . . . . . . Phasic 195 | . . . . . . . . . . . . . . 195 Highest Corruption 25 | . . . . . 1 10 10 3 8 8 . 3 25 9 Average Corruption 7 | . . . . . 1 2 10 2 7 8 . 2 14 7 Corruption Purged . | . . . . . . . . . . . . . . . Corruption Blocked . | . . . . . . . . . . . . . . . Effects 132 | . . . . . . 16 29 1 2 12 . 7 62 3 Message Errors 30 | . . . . . . 5 6 . 1 1 . 4 11 2 Matter Fused 34 | . . . . . . 4 9 . . 5 . 1 15 . Heat Flow Errors 23 | . . . . . . 2 5 . 1 . . 1 14 . Energy Discharges 15 | . . . . . . 3 2 1 . 2 . 1 6 . Parts Rejected 1 | . . . . . . . 1 . . . . . . . Parts Fused 2 | . . . . . . 1 . . . . . . 1 . Data Loss (minor) 17 | . . . . . . 1 4 . . 2 . . 9 1 Data Loss (major) 6 | . . . . . . . . . . 2 . . 4 . Alerts 2 | . . . . . . . 2 . . . . . . . Misdirections 2 | . . . . . . . . . . . . . 2 . Overload Shots . | . . . . . . . . . . . . . . . Overflow Damage 1349 | . 97 . . . 261 149 . 103 . . . 51 546 142 Projectiles 50 | . . . . . . . . . . . . . . 50 Explosions 97 | . 97 . . . . . . . . . . . . . Melee 1202 | . . . . . 261 149 . 103 . . . 51 546 92 Knockbacks . | . . . . . . . . . . . . . . . Impact . | . . . . . . . . . . . . . . . Kinetic . | . . . . . . . . . . . . . . . Secondary . | . . . . . . . . . . . . . . . Self-Inflicted Damage 114 | . 114 . . . . . . . . . . . . . Shots 1 | . 1 . . . . . . . . . . . . . Rammed . | . . . . . . . . . . . . . . . Targets Rammed 2 | . . . . . . 1 . . . . . . 1 . Kicked 2 | . . . . . . 1 . . . . . . 1 . Crushed . | . . . . . . . . . . . . . . . Highest Temperature 253 | . 105 . 85 . . 169 216 21 64 . . 143 253 . Average Temperature 59 | . 31 . 36 . . 86 84 8 43 . . 105 99 . Received Heat Transfer 2183 | . 171 42 15 . 153 511 57 881 . . . 57 287 9 Siege Activations . | . . . . . . . . . . . . . . . Martial Activations . | . . . . . . . . . . . . . . . Shielding Activations . | . . . . . . . . . . . . . . . Robots Disrupted 8 | . . . . . 2 . . 1 . . . . 4 1 Combat Hostiles 6 | . . . . . 1 . . 1 . . . . 3 1 Robots Corrupted . | . . . . . . . . . . . . . . . Combat Hostiles . | . . . . . . . . . . . . . . . Parts Fried 1 | . . . . . . 1 . . . . . . . . Impact Corruptions . | . . . . . . . . . . . . . . . Robots Melted . | . . . . . . . . . . . . . . . Combat Hostiles . | . . . . . . . . . . . . . . . Parts Melted 1 | . . . . . . 1 . . . . . . . . Heat Transferred 606 | . 370 111 125 . . . . . . . . . . . Parts Sabotaged . | . . . . . . . . . . . . . . . Parts Stolen . | . . . . . . . . . . . . . . . Parts Stripped . | . . . . . . . . . . . . . . . Power Chain Reactions . | . . . . . . . . . . . . . . . Alert | -11 -10 -10 -7 -7 -5 -5 -5 -4 -4 -4 -3 -3 -2 -1 ------- Run | Yrd Mat Sub Rec Scr Fac Ext Cet Fac Was Fac Res Qua Res Acc Maximum Alert Level 3 | . . . . . . 3 2 2 . . . . 1 1 Low Security (%) 73 | 100 100 . 100 . 100 74 . 52 100 100 100 100 56 93 Level 1 12 | . . . . . . 3 28 10 . . . . 43 6 Level 2 11 | . . . . . . 13 71 36 . . . . . . Level 3 1 | . . . . . . 8 . . . . . . . . Level 4 . | . . . . . . . . . . . . . . . Level 5 . | . . . . . . . . . . . . . . . High Security . | . . . . . . . . . . . . . . . Max Security . | . . . . . . . . . . . . . . . Peak Influence 914 | . 160 . 28 . 70 914 597 684 189 101 30 42 365 201 Initial 509 | . . . 14 . . 17 509 204 189 101 . . 21 201 Average 138 | . 56 . 1 . 28 161 460 296 172 5 3 10 151 122 Influence Increases 5213 | . 327 121 85 . 264 1373 376 1080 16 42 40 245 1124 120 Destroy 0b10 Robot/C 2480 | . 200 60 60 . 120 640 160 340 . . . 140 680 80 Destroy 0b10 Robot/NC 230 | . 25 . . . 50 40 10 35 . 5 . 15 50 . Destroy Leader 418 | . 52 . . . 32 66 . 104 . . . 20 124 20 Allied During Kill 1033 | . . 16 12 . . 535 168 294 . . . . . 8 Successful Hack 31 | . . . . . . 15 8 . . 8 . . . . Disable Machine 225 | . 30 . . . 15 15 . 105 . 15 . 45 . . Destroy Structure 376 | . 20 . 13 . 2 62 30 112 16 14 10 10 75 12 Partial Spotted 15 | . . . . . . . . . . . . . 15 . Lose Combat Pursuer 405 | . . 45 . . 45 . . 90 . . 30 15 180 . Influence Decreases 5213 | . 183 235 115 . 228 498 922 905 411 187 40 207 825 457 Entered New Map 1216 | . . 70 16 . . 19 402 161 351 44 . . 17 136 Time Decay 2533 | . 163 125 75 . 198 357 310 404 40 42 40 157 479 143 Lost Part 871 | . 20 . . . 30 60 30 240 . . . 30 303 158 Lost Ally 492 | . . 40 24 . . 62 180 100 20 . . 20 26 20 Purge Threat 101 | . . . . . . . . . . 101 . . . . Squads Dispatched 30 | . 1 . . . 3 1 . 12 . 1 . 4 8 . Investigation 1 | . 1 . . . . . . . . . . . . . Extermination 10 | . . . . . 1 . . 1 . 1 . 2 5 . Reinforcement 13 | . . . . . 2 1 . 5 . . . 2 3 . Assault 2 | . . . . . . . . 2 . . . . . . Garrison 4 | . . . . . . . . 4 . . . . . . Intercept . | . . . . . . . . . . . . . . . Searches Triggered . | . . . . . . . . . . . . . . . Construction Impeded 1 | . . . . . . . . 1 . . . . . . Haulers Reinforced 1 | . . . . . . . . 1 . . . . . . Active Scanning Responses . | . . . . . . . . . . . . . . . Cargo Convoy Interrupts 1 | . . . . . . . . 1 . . . . . . Stealth | -11 -10 -10 -7 -7 -5 -5 -5 -4 -4 -4 -3 -3 -2 -1 --------- Run | Yrd Mat Sub Rec Scr Fac Ext Cet Fac Was Fac Res Qua Res Acc Distress Signals 16 | . 2 . . . . 3 2 2 . . 2 . 4 1 Communications Jammed . | . . . . . . . . . . . . . . . Distress Signals . | . . . . . . . . . . . . . . . Times Spotted 231 | . 13 17 1 . 16 36 10 29 6 1 4 15 62 21 Peak Tracking Total 13 | . 4 4 1 . 5 5 5 12 6 . 2 3 10 13 Tactical Retreats 15 | . . 2 . . 1 . . 2 . . 1 1 8 . Traps | -11 -10 -10 -7 -7 -5 -5 -5 -4 -4 -4 -3 -3 -2 -1 ------- Run | Yrd Mat Sub Rec Scr Fac Ext Cet Fac Was Fac Res Qua Res Acc Traps Triggered 6 | . 1 . . . 1 2 . 1 . . . 1 . . Indirectly . | . . . . . . . . . . . . . . . Trap Hack Attempts . | . . . . . . . . . . . . . . . Triggered . | . . . . . . . . . . . . . . . Disarmed . | . . . . . . . . . . . . . . . Reprogrammed . | . . . . . . . . . . . . . . . Reused . | . . . . . . . . . . . . . . . Traps Extracted . | . . . . . . . . . . . . . . . Installed . | . . . . . . . . . . . . . . . Triggered . | . . . . . . . . . . . . . . . Machines | -11 -10 -10 -7 -7 -5 -5 -5 -4 -4 -4 -3 -3 -2 -1 ---------- Run | Yrd Mat Sub Rec Scr Fac Ext Cet Fac Was Fac Res Qua Res Acc Machines Disabled 16 | . 2 . . . 1 2 . 7 . 1 . 3 . . Max in Single Turn 2 | . 2 . . . 1 . . 1 . 1 . 1 . . Garrison Access 1 | . . . . . . . . 1 . . . . . . Energy Cycler 1 | . . . . . . 1 . . . . . . . . Machines Repaired . | . . . . . . . . . . . . . . . Machines Dismantled . | . . . . . . . . . . . . . . . Machines Sabotaged . | . . . . . . . . . . . . . . . Overloaded Fab Kills . | . . . . . . . . . . . . . . . Hacking | -11 -10 -10 -7 -7 -5 -5 -5 -4 -4 -4 -3 -3 -2 -1 --------- Run | Yrd Mat Sub Rec Scr Fac Ext Cet Fac Was Fac Res Qua Res Acc Machines Accessed 19 | . . . . 4 1 3 1 3 . 2 . 2 3 . Terminals 7 | . . . . . 1 3 1 . . 1 . . 1 . Fabricators 3 | . . . . . . . . 1 . 1 . . 1 . Repair Stations 3 | . . . . . . . . 1 . . . 1 1 . Recycling Units . | . . . . . . . . . . . . . . . Scanalyzers . | . . . . . . . . . . . . . . . Garrison Access 2 | . . . . . . . . 1 . . . 1 . . Total Hacks 51 | . . . . 29 1 3 1 5 . 7 . 2 3 . Successful 39 | . . . . 29 1 3 1 2 . 3 . . . . Failed 12 | . . . . . . . . 3 . 4 . 2 3 . Catastrophic 3 | . . . . . . . . . . . . 1 2 . Database Lockouts . | . . . . . . . . . . . . . . . Manual 6 | . . . . . . . 1 . . 3 . . 2 . Terminals 11 | . . . . . 1 3 1 . . 5 . . 1 . Fabricators 4 | . . . . . . . . 1 . 2 . . 1 . Repair Stations 5 | . . . . . . . . 3 . . . 1 1 . Recycling Units . | . . . . . . . . . . . . . . . Scanalyzers . | . . . . . . . . . . . . . . . Garrison Access 2 | . . . . . . . . 1 . . . 1 . . Terminal Hacks 35 | . . . . 29 1 3 1 . . 1 . . . . Record 24 | . . . . 24 . . . . . . . . . . Robot Analysis 4 | . . . . 4 . . . . . . . . . . Open Door 6 | . . . . 1 1 3 1 . . . . . . . Unreport Threat 1 | . . . . . . . . . . 1 . . . . Fabricator Hacks 1 | . . . . . . . . . . 1 . . . . Network Status 1 | . . . . . . . . . . 1 . . . . Repair Station Hacks 1 | . . . . . . . . 1 . . . . . . Scan Component 1 | . . . . . . . . 1 . . . . . . Recycling Unit Hacks . | . . . . . . . . . . . . . . . Scanalyzer . | . . . . . . . . . . . . . . . Garrison Access Hacks 1 | . . . . . . . . 1 . . . . . . Seal Access 1 | . . . . . . . . 1 . . . . . . Unauthorized Hacks 1 | . . . . . . . . . . 1 . . . . Terminals . | . . . . . . . . . . . . . . . Fabricators 1 | . . . . . . . . . . 1 . . . . Fabnet 1 | . . . . . . . . . . 1 . . . . Repair Stations . | . . . . . . . . . . . . . . . Recycling Units . | . . . . . . . . . . . . . . . Scanalyzers . | . . . . . . . . . . . . . . . Garrison Access . | . . . . . . . . . . . . . . . Data Cores Recovered . | . . . . . . . . . . . . . . . Used . | . . . . . . . . . . . . . . . Hacking Detections 10 | . . . . . . 1 1 2 . 1 . 2 3 . Full Trace Events . | . . . . . . . . . . . . . . . Feedback Events . | . . . . . . . . . . . . . . . Feedback Blocked . | . . . . . . . . . . . . . . . Robot Schematics Acquired 2 | . . . . . . . . . . . . 2 . . Robots Built . | . . . . . . . . . . . . . . . Authchips . | . . . . . . . . . . . . . . . Time . | . . . . . . . . . . . . . . . Total Robot Build Rating . | . . . . . . . . . . . . . . . Part Schematics Acquired 1 | . . . . . . . . . . . . 1 . . Parts Built . | . . . . . . . . . . . . . . . Authchips . | . . . . . . . . . . . . . . . Time . | . . . . . . . . . . . . . . . Total Part Build Rating . | . . . . . . . . . . . . . . . Parts Repaired . | . . . . . . . . . . . . . . . Time . | . . . . . . . . . . . . . . . Parts Recycled . | . . . . . . . . . . . . . . . Recycled Matter . | . . . . . . . . . . . . . . . Retrieved Matter . | . . . . . . . . . . . . . . . Retrieved Components . | . . . . . . . . . . . . . . . Parts Scanalyzed . | . . . . . . . . . . . . . . . Part Schematics Acquired . | . . . . . . . . . . . . . . . Parts Damaged . | . . . . . . . . . . . . . . . Bothacking | -11 -10 -10 -7 -7 -5 -5 -5 -4 -4 -4 -3 -3 -2 -1 ------------ Run | Yrd Mat Sub Rec Scr Fac Ext Cet Fac Was Fac Res Qua Res Acc Used RIF Installer . | . . . . . . . . . . . . . . . Robots Hacked 2 | . . . . . . . . . . . 1 1 . . Non-combat . | . . . . . . . . . . . . . . . Combat 2 | . . . . . . . . . . . 1 1 . . Robot Hacks Applied . | . . . . . . . . . . . . . . . Relay Couplers Released . | . . . . . . . . . . . . . . . Fabnet Peak Effective % 3 | . . . . . . . . . . . 3 3 1 . Autooverrided 2 | . . . . . . . . . . . 1 1 . . Robots Rewired 20 | . . . 2 . . 14 . 1 . . . . 2 1 Allies Hacked 1 | . . . . . . . . . . . . . 1 . Hacks Repelled . | . . . . . . . . . . . . . . . Allies | -11 -10 -10 -7 -7 -5 -5 -5 -4 -4 -4 -3 -3 -2 -1 -------- Run | Yrd Mat Sub Rec Scr Fac Ext Cet Fac Was Fac Res Qua Res Acc Total Allies 44 | . . 10 2 . . 20 5 1 1 . 1 1 2 1 Largest Group 15 | . . 7 9 . . 14 15 8 1 . . 1 1 1 Highest-Rated Group 887 | . . 133 173 . . 547 887 689 96 . . 47 64 69 Highest-Rated Ally 159 | . . 19 30 . . 159 159 156 96 . . 47 64 69 Total Orders . | . . . . . . . . . . . . . . . Ally Attacks 359 | . . 18 7 . . 138 82 90 8 . . 2 5 9 Total Damage 11265 | . . 389 155 . . 3287 2592 3794 388 . . 79 170 411 Kills 51 | . . 4 . . . 22 11 13 . . . . . 1 Allies Corrupted . | . . . . . . . . . . . . . . . Allies Melted 1 | . . . . . . 1 . . . . . . . . Intel | -11 -10 -10 -7 -7 -5 -5 -5 -4 -4 -4 -3 -3 -2 -1 ------- Run | Yrd Mat Sub Rec Scr Fac Ext Cet Fac Was Fac Res Qua Res Acc Active Infowar (turns) 5636 | . . . . . 513 866 . 653 82 314 308 777 1820 303 Optics 3928 | . . . . . . . . 324 82 314 308 777 1820 303 Sensors 3789 | . . . . . 111 866 . 581 82 314 308 777 750 . Structural 478 | . . . . . 478 . . . . . . . . . Robot Analysis Total 4 | . . . . 4 . . . . . . . . . . Derelict Logs Recovered 6 | . . 1 . 5 . . . . . . . . . . Drone Launches . | . . . . . . . . . . . . . . . Drone Recoveries . | . . . . . . . . . . . . . . . Exploration | -11 -10 -10 -7 -7 -5 -5 -5 -4 -4 -4 -3 -3 -2 -1 ------------- Run | Yrd Mat Sub Rec Scr Fac Ext Cet Fac Was Fac Res Qua Res Acc Turns Passed 14860 | 85 570 3243 970 2531 555 1649 692 961 82 314 308 777 1820 303 Spaces Moved 9326 | 55 259 2178 589 1744 308 834 277 726 136 280 176 547 1030 187 Core 27 | 19 . . . . . . . 1 . . . . . 7 Treads 101 | 36 65 . . . . . . . . . . . . . Legs 3135 | . . . . . 126 834 277 516 . 123 . 84 1030 145 Wheels 5589 | . 194 2178 589 1744 182 . . . . 63 176 463 . . Hover 35 | . . . . . . . . . . . . . . 35 Flight 439 | . . . . . . . . 209 136 94 . . . . Fastest Speed 45 | 50 145 130 145 117 110 130 130 45 45 45 115 115 116 56 Average Speed 129 | 122 148 142 145 143 127 130 130 102 45 93 115 120 119 110 Slowest Speed 800 | 160 160 145 145 145 145 220 260 800 45 120 115 180 124 124 Overloaded Moves . | . . . . . . . . . . . . . . . Propulsion Burnouts . | . . . . . . . . . . . . . . . Robots Hopped 3 | . . . . . . . . 3 . . . . . . Potential Cave-ins 6 | . . . . . . . . 3 . 3 . . . . Cave-ins Triggered . | . . . . . . . . . . . . . . . Exploration Rate (%) 45 | 3 32 96 73 88 12 88 81 18 82 8 8 63 25 8 Regions Visited 14 Branch Regions 6 Pre-discovered Areas 5 | . . 1 . 4 . . . . . . . . . . Known Exits Taken 8 | . . . . 1 1 1 1 . . 1 1 1 1 . Unknown Exits Taken 4 | 1 1 1 1 . . . . . . . . . . . Scrap Searched 19 | . . 13 . 6 . . . . . . . . . . Spaces Dug 83 | . 1 1 14 . 1 . . 15 . 10 5 5 27 4 Terrain Destroyed 106 | . 24 1 14 . 1 . . 15 . 10 5 5 27 4 Melee 83 | . 1 1 14 . 1 . . 15 . 10 5 5 27 4 Projectile . | . . . . . . . . . . . . . . . AOE 23 | . 23 . . . . . . . . . . . . . Terrain Rammed . | . . . . . . . . . . . . . . . Walls Destroyed . | . . . . . . . . . . . . . . . Machines Disabled . | . . . . . . . . . . . . . . . Actions | -11 -10 -10 -7 -7 -5 -5 -5 -4 -4 -4 -3 -3 -2 -1 --------- Run | Yrd Mat Sub Rec Scr Fac Ext Cet Fac Was Fac Res Qua Res Acc Total 11439 | 71 387 2256 667 1779 402 1294 601 857 156 315 278 658 1472 246 Wait 1063 | . 79 12 9 4 7 281 309 26 21 6 93 28 173 15 Move 9307 | 54 258 2177 588 1743 307 833 276 720 135 279 175 546 1029 187 Hop 3 | . . . . . . . . 3 . . . . . . Pick Up 123 | 11 7 14 . 14 13 11 4 14 . 2 . 12 19 2 Fast Attach 44 | 1 3 . 1 1 4 2 1 1 . 9 3 4 13 1 Attach 87 | 3 2 1 . 3 8 8 5 21 . 3 . 7 18 8 Detach 10 | . . 1 . . 1 2 1 1 . 1 . 2 . 1 Swap 23 | 2 4 8 3 1 1 2 . . . . . . 2 . Drop 58 | . 4 6 2 13 9 5 1 4 . 2 . 6 4 2 Fire 38 | . 27 5 6 . . . . . . . . . . . Melee 535 | . 3 32 15 . 52 69 4 60 . 13 7 51 201 28 Ram . | . . . . . . . . . . . . . . . Kick 2 | . . . . . . 1 . . . . . . 1 . Crush . | . . . . . . . . . . . . . . . Escape Stasis 2 | . . . . . . . . . . . . 2 . . Rewire 144 | . . . 43 . . 80 . 7 . . . . 12 2 Trap . | . . . . . . . . . . . . . . . Miscellaneous . | . . . . . . . . . . . . . . . Route ------- -11/Scrapyard -10/Materials (discovered 4 exits: [*Mat x2] / [*Min] / [*Sub]) -10/Subcaves (discovered 3 exits: [*Mat x2] / [*Rec]) -7/Recycling (discovered 2 exits: *Fac / *Scr) -7/Scraptown (discovered 2 exits: *Fac x2) -5/Factory (discovered 8 exits: *Fac x4 / Upp x2 / *Ext x2) -5/Extension (discovered 2 exits: *Fac / *Cet) -5/Cetus (discovered 3 exits: *Fac x2 / [*Arc]) -4/Factory (discovered 3 exits: *Res x3) -4/Waste -4/Factory -3/Research (discovered 5 exits: *Res x3 / *Qua x2) -3/Quarantine -2/Research -1/Access (discovered 1 exit: Sur) History --------- Turn | Location | Event 6 | -11/Scrapyard | Discovered new exit (range 16) 86 | -11/Scrapyard | Entered Materials 301 | -10/Materials | Build established: Mutant 374 | -10/Materials | Discovered new exit (range 12) 478 | -10/Materials | Discovered new exit (range 16) 554 | -10/Materials | Discovered new exit (range 16) 639 | -10/Materials | Discovered new exit (range 6) 656 | -10/Materials | Entered Subcaves 945 | -10/Subcaves | Shifting Twisted Machinery released Mak. Flight Unit 945 | -10/Subcaves | Shifting Twisted Machinery released Sub. Machine Gun 1097 | -10/Subcaves | Visited triangular shrine 1106 | -10/Subcaves | Found Prototype Device 1107 | -10/Subcaves | Identified V3-11A's Pendant 1112 | -10/Subcaves | Befriended Subdweller 1427 | -10/Subcaves | Befriended Subdweller 1732 | -10/Subcaves | Shifting Twisted Machinery released Scrap Shield 1733 | -10/Subcaves | Shifting Twisted Machinery released Riot Gun 1807 | -10/Subcaves | Befriended Subdweller 1812 | -10/Subcaves | Befriended Subdweller 1907 | -10/Subcaves | Befriended Subdweller 1907 | -10/Subcaves | Befriended Subdweller 1910 | -10/Subcaves | Learned Materials emergency access door positions 1938 | -10/Subcaves | Shifting Twisted Machinery released Battle Rifle 2031 | -10/Subcaves | Discovered new exit (range 9) 2252 | -10/Subcaves | Befriended Subdweller 2252 | -10/Subcaves | Befriended Subdweller 2492 | -10/Subcaves | Befriended Subdweller 2492 | -10/Subcaves | Befriended Subdweller 2499 | -10/Subcaves | Ambushed by Subdwellers from Twisted Machinery 2561 | -10/Subcaves | Learned location of Zion (-7) 2561 | -10/Subcaves | Met a Zionite searching for "candidates" 2585 | -10/Subcaves | Discovered new exit (range 8) 3689 | -10/Subcaves | Shifting Twisted Machinery released Battle Cannon 3895 | -10/Subcaves | Discovered new exit (range 3) 3899 | -10/Subcaves | Entered Recycling 3899 | -7/Recycling | Accompanied by 7 allies 4022 | -7/Recycling | Core integrity fell below 50% 4027 | -7/Recycling | Core integrity fell below 20% 4061 | -7/Recycling | Lost 9 allies 4397 | -7/Recycling | Discovered new exit (range 8) 4835 | -7/Recycling | Scanned before Scraplab entrance 4855 | -7/Recycling | Entered Scraplab 4866 | -7/Recycling | Discovered new exit (range 2) 4869 | -7/Recycling | Entered Scraptown 4962 | -7/Scraptown | Visited Comm Corps 5007 | -7/Scraptown | Visited TADAMA 5241 | -7/Scraptown | Discovered new exit (range 13) 5426 | -7/Scraptown | Delivered V3-11A's Pendant to T0-NE2 in exchange for information 5670 | -7/Scraptown | Visited Fellowship of the Rings 5692 | -7/Scraptown | Visited Cyclists 5705 | -7/Scraptown | Visited Bundlers 5887 | -7/Scraptown | Scanned Subdweller tech in exchange for log data 5892 | -7/Scraptown | Learned location of 1 exit from Research 5893 | -7/Scraptown | Learned 8 Research zone layouts 5895 | -7/Scraptown | Learned Factory emergency access door positions 5896 | -7/Scraptown | Learned location of 2 exits from Proximity Caves 5941 | -7/Scraptown | Visited Awakened 5953 | -7/Scraptown | Visited Cave Peace 5979 | -7/Scraptown | Visited UFD Registry 5979 | -7/Scraptown | Registered with UFD as "Cargodriver" 6012 | -7/Scraptown | Visited Junk Repository 6066 | -7/Scraptown | Visited Curators Association 6119 | -7/Scraptown | Visited Botcube Research 6167 | -7/Scraptown | Delivered Scrap Shield to a Scientist 6295 | -7/Scraptown | Visited Analyses Database 6328 | -7/Scraptown | Visited Scrapoid Pod Storage 6353 | -7/Scraptown | Visited Science Testing Area 6367 | -7/Scraptown | Visited Cartography Club 6421 | -7/Scraptown | Found Surveybot 17 Chip 6545 | -7/Scraptown | Learned location of Cetus (-5) 6545 | -7/Scraptown | Learned location of Hub_04(d) (-5) 6545 | -7/Scraptown | Learned location of Armory (-4) 6545 | -7/Scraptown | Learned 8 Factory zone layouts 6545 | -7/Scraptown | Learned 16 Factory zone layouts 6545 | -7/Scraptown | Learned 8 Research zone layouts 6545 | -7/Scraptown | Learned 12 Research zone layouts 6545 | -7/Scraptown | Learned 8 Access zone layouts 6545 | -7/Scraptown | Learned 4 Access zone layouts 6545 | -7/Scraptown | Learned 8 Upper Caves zone layouts 6545 | -7/Scraptown | Learned 12 Proximity Caves zone layouts 6545 | -7/Scraptown | Learned Factory emergency access door positions 6545 | -7/Scraptown | Learned location of 3 exits from Factory 6545 | -7/Scraptown | Learned location of 2 exits from Upper Caves 6545 | -7/Scraptown | Identified exit to Factory 6624 | -7/Scraptown | Found Deep Structural Scanner 6666 | -7/Scraptown | Visited Abandonware Association 6678 | -7/Scraptown | Learned abandonware demo "OVRCLOCK.EXE" 6683 | -7/Scraptown | Learned abandonware demo "KABOOM.EXE" 6683 | -7/Scraptown | Learned abandonware demo "POISON.EXE" 6718 | -7/Scraptown | Visited Sword Containment 6771 | -7/Scraptown | Visited Research Penetration Think Tank 7089 | -7/Scraptown | Entered Cyclist Reading Room 7400 | -7/Scraptown | Entered Factory 7400 | -5/Factory | Evolved 10 slots: Power x1, Propulsion x2, Utility x7 7401 | -5/Factory | Identified exit to Upper Caves 7401 | -5/Factory | Identified exit to Extension 7402 | -5/Factory | Identified exit to Factory 7955 | -5/Factory | Entered Extension 8125 | -5/Extension | Lost 3 parts (1p1n1u) 8407 | -5/Extension | Rescued A7 8737 | -5/Extension | Rescued a captive Derelict 8737 | -5/Extension | Rescued a captive Derelict 8768 | -5/Extension | Build established: Commander-Mutant 9127 | -5/Extension | Spotted B-75 Beast 9145 | -5/Extension | Allies destroyed B-75 Beast 9151 | -5/Extension | Spotted B-75 Beast 9165 | -5/Extension | Allies destroyed B-75 Beast 9186 | -5/Extension | Lost 6 allies 9235 | -5/Extension | Energy Cycler disabled 9235 | -5/Extension | Rescued a captive Derelict 9237 | -5/Extension | Rescued a captive Derelict 9238 | -5/Extension | Rescued a captive Derelict 9380 | -5/Extension | System corruption reached 10% 9523 | -5/Extension | Discovered exit to Factory (range 10) 9565 | -5/Extension | Discovered new exit (range 6) 9584 | -5/Extension | Identified exit to Cetus 9604 | -5/Extension | Entered Cetus 9604 | -5/Cetus | Accompanied by 13 allies (A7) 9609 | -5/Cetus | Acquired a Cetus Manufacturing Module code from A7 9630 | -5/Cetus | Spotted Cetus Guard 9630 | -5/Cetus | Spotted Cetus Guard 9632 | -5/Cetus | Spotted Cetus Guard 9633 | -5/Cetus | Spotted Cetus Guard 9635 | -5/Cetus | Allies destroyed Cetus Guard 9643 | -5/Cetus | Allies destroyed Cetus Guard 9643 | -5/Cetus | Allies destroyed Cetus Guard 9653 | -5/Cetus | Allies destroyed Cetus Guard 9678 | -5/Cetus | Lost 3 allies 9693 | -5/Cetus | Started Cetus Manufacturing Module 9718 | -5/Cetus | Manufactured an Enhanced Grunt 9743 | -5/Cetus | Manufactured an Enhanced Grunt 9768 | -5/Cetus | Manufactured an Enhanced Grunt 9793 | -5/Cetus | Manufactured an Enhanced Grunt 9818 | -5/Cetus | Manufactured an Enhanced Grunt 9945 | -5/Cetus | Discovered exit to Factory (range 16) 10094 | -5/Cetus | Discovered new exit (range 16) 10148 | -5/Cetus | Spotted Cetus Guard 10148 | -5/Cetus | Spotted Cetus Guard 10157 | -5/Cetus | Spotted Cetus Guard 10161 | -5/Cetus | Spotted Cetus Guard 10166 | -5/Cetus | Allies destroyed Cetus Guard 10173 | -5/Cetus | Discovered exit to Factory (range 16) 10183 | -5/Cetus | Allies destroyed Cetus Guard 10184 | -5/Cetus | Allies destroyed Cetus Guard 10187 | -5/Cetus | Allies destroyed Cetus Guard 10188 | -5/Cetus | Met Revision 17 10214 | -5/Cetus | Lost 7 allies 10296 | -5/Cetus | Entered Factory 10296 | -4/Factory | Accompanied by 8 allies (A7) 10296 | -4/Factory | Evolved 2 slots: Propulsion x1, Utility x1 10297 | -4/Factory | Identified exit to Research 10409 | -4/Factory | Spotted B-86 Titan 10627 | -4/Factory | Build established: Scavenger-Mutant 10817 | -4/Factory | Allies destroyed B-86 Titan 10824 | -4/Factory | Garrison activated, responded to threat 10845 | -4/Factory | Garrison activated, responded to threat 10912 | -4/Factory | Lost 3 parts (3n) 11046 | -4/Factory | First assault squad dispatched 11092 | -4/Factory | Lost 3 allies 11125 | -4/Factory | Core integrity fell below 50% 11135 | -4/Factory | Core integrity fell below 20% 11140 | -4/Factory | Cargo convoy interrupted 11165 | -4/Factory | Lost 17 parts (1p7n9u) 11257 | -4/Factory | Sucked down chute 11257 | -4/Factory | Entered Waste 11257 | -4/Waste | Met up with 1 ally sucked down the chute earlier 11272 | -4/Waste | EMP discharged 11272 | -4/Waste | Spotted C-40 Crusher 11272 | -4/Waste | Spotted C-40 Crusher 11306 | -4/Waste | Spotted C-40 Crusher 11310 | -4/Waste | Spotted C-40 Crusher 11314 | -4/Waste | Spotted C-40 Crusher 11318 | -4/Waste | Spotted C-40 Crusher 11335 | -4/Waste | Discovered new exit (range 10) 11339 | -4/Waste | Identified exit to Factory 11339 | -4/Waste | Entered Factory 11607 | -4/Factory | Discovered exit to Research (range 12) 11653 | -4/Factory | Entered Research 11653 | -3/Research | Evolved 2 slots: Propulsion x1, Utility x1 11654 | -3/Research | Identified exit to Quarantine 11655 | -3/Research | Identified exit to Research 11686 | -3/Research | Build established: Assassin 11853 | -3/Research | Revision forces began assault on 0b10 11926 | -3/Research | Local machine network offline 11961 | -3/Research | Entered Quarantine 12153 | -3/Quarantine | Scanned by Researcher 12361 | -3/Quarantine | Found Alien Artifact 12362 | -3/Quarantine | Identified Phase Armor 12695 | -3/Quarantine | Found Alien Artifact 12696 | -3/Quarantine | Identified Phase Redirector 12704 | -3/Quarantine | Discovered exit to Research (range 19) 12726 | -3/Quarantine | Found Alien Artifact 12738 | -3/Quarantine | Entered Research 12738 | -2/Research | Evolved 2 slots: Utility x2 12965 | -2/Research | Build established: Scavenger-Assassin 13092 | -2/Research | Lost 10 parts (3p5n2u) 13230 | -2/Research | System corruption reached 10% 13639 | -2/Research | Lost 7 parts (1p2n4u) 13666 | -2/Research | Core integrity fell below 50% 13994 | -2/Research | Build established: Scavenger-Mutant 14140 | -2/Research | Lost 4 parts (1p3n) 14373 | -2/Research | Discovered new exit (range 16) 14391 | -2/Research | Identified exit to Access 14558 | -2/Research | Entered Access 14558 | -1/Access | Evolved 2 slots: Propulsion x1, Utility x1 14559 | -1/Access | Identified exit to Surface 14804 | -1/Access | Identified Subatomic Replicator 14804 | -1/Access | Forged Prototype Slashing Weapon 14811 | -1/Access | Core integrity fell below 50% 14836 | -1/Access | Spotted B-99 Colossus 14837 | -1/Access | Core integrity fell below 20% 14838 | -1/Access | Lost 17 parts (2p9n6u) 14861 | -1/Access | Destroyed by H-88 Terminator with KE Penetrator Last Messages --------------- K-01 Serf cleans the Spectral Interrupter. Slug penetrates Wall. K-01 Serf destroyed. K-01 Serf cleans the Spectral Interrupter. Slug penetrates Wall. NOJ&JAAADINCP1J/0= W3|K=QLVZQ:4Z K-01 Serf collects debris. K-01 Serf cleans the Spectral Interrupter. Imp. Antigrav System destroyed. K-01 Serf collects debris. Slug penetrates Wall. K-01 Serf collects debris. K-01 Serf cleans the Spectral Interrupter. Imp. Antigrav System destroyed. K-01 Serf collects debris. W-44 Eye sends out distress signal. Slug penetrates Wall. U-05 Engineer destroyed. K-01 Serf collects debris. Slug penetrates Wall. Map ----- +----------------------------------------------------+ | ?????????????????????????????????????????????????? | | ?????????????????????????????????????????????????? | | ?????????????????????????????????????????????????? | | ##########???????????????????????????????###?????? | | #???????????????????????????????# ####### | | ????????????????????????????????? | | ??????????????????????????????????? | | ????????????????????????????????????? | | ??????????????????????????????????????? | | ????????????????????????????????????????? | | ##################+####?###?????????????? | | #?= ?????????????? | | #?= ??????????????" " | | #?= ??????????????" " | | #? ??????????????"G"" | | #? ?????????????? | | #? ????????????? | | ###+######+######+####?????? | | ############## w #?????? | | # # k A #?????? | | # # t #?????? | | # " "" + % #?????? | | # "" # #?????? | | # # kgg #? ??? | | # # !%= ## ???? | | # # ###@########## ??? | | # # # ## ???? | | # # # ## ! ???? | | ############## # g ## " ????? | | ###########?## # !## """" ????? | | # ?# |! # "k ## """"" ? | | # # =%! # """" ## """"" ! | | ## + [[= # """"" ## """" | | ?# " # # """"" ## " | | ?# """ # # """" ## | | ?# """ + # " + | | ?# " # # ## | | ?# ! # # ## | | ?# ?# = ! # ## | | ?# ?# *%!% ############## | | ?# ??# ![!=#????????????# | | ?# ??# %=#????????????# | | ?###+######???# #???????????????? [[[ | | ???# #????????#= #????????????????""[""" | | ???# #????????#%* #?????????????????"F""" | | #### ##########%= #?????????????????""""" | | # [ "%[ #??????????????????#####+### | | # *% #??????????????????????????? | | # [ #??????????????????????????? | | # #??????????????????????????? | +----------------------------------------------------+ Best States ------------- Heat Dissipation 90 Energy Generation 45 Energy Capacity 420 Matter Stores 300 Matter Capacity 300 Sight Range 22 Robot Scan Range 16 Terrain Scan Density 10 Armor Coverage 600 Core Shielding 20 Weapon Shielding 66 Melee Speed Boost 50 Evasion (%) 82 Melee Accuracy 13 Core Analysis 6 Armor Integrity Analysis 40 Recoil Reduction 2 Offensive Hacking 12 Item Schematics ----------------- Exp. Coolant Injector | -3/Quarantine | Archive Robot Schematics ------------------ Y-72 Warden | -3/Quarantine | Archive B-60 Warrior | -3/Quarantine | Archive Fabricated ------------ Nothing Repaired ---------- Nothing Alien Tech Used ----------------- Phase Armor Phase Redirector Subatomic Replicator Achievements -------------- None Challenges ------------ None Game ------ Seed TechSalvagingAutobeam Manual? 1 Play Time 02:06:33 Cumulative 235.5 hours Start 2025.09.19 @ 09:33:45 End 2025.09.19 @ 12:22:35 Sessions 3 Manual Loads 0 Difficulty Rogue Special Mode None Game No. 205 Rogue 205 Adventurer 0 Explorer 0 Win Type - Total 13 Types 7/0/2/2/1/0/0/0/0/1 Lore% 93 Gallery% 86 Achievement% 75 Wizard Run 0 Options --------- Layout 1 ASCII 0 Keyboard 0 Movement Numpad Keybinds 0 Fullscreen 1 Font 24/Proggy Map View 50x35 Zoom Use 0% Tactical HUD 0 Map Filters NONE Filters NONE Steam 1 RUN: 50528a7e-0a46-4216-8e28-bc8efe2f7cec